fUSD/lending_fUSD_20240422
["ID","MTS","AMOUNT","RATE_DAILY","PERIOD"]
[323217687,1713817932864,-2000.81,0.00015068,2]
[323217688,1713817932875,-1468.28,0.00015068,2]
[323217689,1713817932884,-595.04,0.00015068,2]
[323217690,1713817932893,-1219.08,0.00015068,2]
[323217691,1713817932903,-881.21,0.00015068,2]
[323217692,1713817932913,-2218.86,0.00015068,2]
[323217693,1713817932922,-533.19,0.00015068,2]
[323217694,1713817932932,-500.0,0.00015068,2]
[323217695,1713817932942,-500.0,0.00015068,2]
[323217696,1713817932951,-934.67,0.00015068,2]
[323217697,1713817932960,-525.62,0.00015068,2]
[323217698,1713817932969,-500.0,0.00015068,2]
[323217699,1713817932978,-702.91,0.00015068,2]
[323217700,1713817932987,-3676.74,0.00015068,2]
[323217701,1713817932997,-548.67,0.00015068,2]
[323217702,1713817933008,-500.0,0.00015068,2]
[323217703,1713817933018,-500.0,0.00015068,2]
[323217704,1713817933026,-1527.36,0.00015068,2]
[323217705,1713817933036,-500.0,0.00015068,2]
[323217706,1713817933045,-2497.52,0.00015068,2]
[323217707,1713817933054,-1077.98,0.00015068,2]
[323217708,1713817933063,-1214.09,0.00015068,2]
[323217709,1713817933072,-960.51,0.00015068,2]
[323217710,1713817933081,-550.0,0.00015068,2]
[323217711,1713817933090,-1969.14,0.00015068,2]
[323217712,1713817933099,-500.0,0.00015068,2]
[323217713,1713817933108,-1099.35,0.00015068,2]
[323217714,1713817933117,-1706.31,0.00015068,2]
[323217715,1713817933126,-1214.51,0.00015068,2]
[323217716,1713817933135,-837.97,0.00015068,2]
[323217717,1713817933145,-500.0,0.00015068,2]
[323217718,1713817933154,-500.0,0.00015068,2]
[323217719,1713817933164,-1339.69,0.00015068,2]
[323217720,1713817933173,-500.0,0.00015068,2]
[323217721,1713817933182,-2687.48,0.00015068,2]
[323217722,1713817933191,-500.0,0.00015068,2]
[323217723,1713817933200,-1917.71,0.00015068,2]
[323217724,1713817933210,-500.0,0.00015068,2]
[323217725,1713817933219,-795.76,0.00015068,2]
[323217726,1713817933228,-500.0,0.00015068,2]
[323217727,1713817933237,-500.0,0.00015068,2]
[323217728,1713817933246,-500.0,0.00015068,2]
[323217729,1713817933256,-1479.38,0.00015068,2]
[323217730,1713817933265,-1253.15,0.00015068,2]
[323217731,1713817933274,-755.1,0.00015068,2]
[323217732,1713817933283,-946.21,0.00015068,2]
[323217733,1713817933293,-705.28,0.00015068,2]
[323217734,1713817933302,-500.0,0.00015068,2]
[323217735,1713817933311,-856.04,0.00015068,2]
[323217736,1713817933320,-500.0,0.00015068,2]
[323217737,1713817933329,-1065.24,0.00015068,2]
[323217738,1713817933338,-1085.95,0.00015068,2]
[323217739,1713817933347,-586.95,0.00015068,2]
[323217740,1713817933356,-3909.96,0.00015068,2]
[323217741,1713817933365,-806.76,0.00015068,2]
[323217742,1713817933374,-1318.24,0.00015068,2]
[323217743,1713817933383,-1254.05,0.00015068,2]
[323217744,1713817933392,-500.0,0.00015068,2]
[323217745,1713817933401,-500.0,0.00015068,2]
[323217746,1713817933411,-500.0,0.00015068,2]
[323217747,1713817933420,-956.54,0.00015068,2]
[323217748,1713817933430,-1335.71,0.00015068,2]
[323217749,1713817933438,-1092.89,0.00015068,2]
[323217750,1713817933448,-1047.55,0.00015068,2]
[323217751,1713817933457,-605.32,0.00015068,2]
[323217752,1713817933467,-500.0,0.00015068,2]
[323217753,1713817933476,-500.0,0.00015068,2]
[323217754,1713817933485,-1295.55,0.00015068,2]
[323217755,1713817933495,-630.63,0.00015068,2]
[323217756,1713817933504,-2415.41,0.00015068,2]
[323217757,1713817933513,-633.15,0.00015068,2]
[323217758,1713817933522,-2338.02,0.00015068,2]
[323217759,1713817933531,-1073.37,0.00015068,2]
[323217760,1713817933540,-500.0,0.00015068,2]
[323217761,1713817933549,-723.42,0.00015068,2]
[323217762,1713817933558,-988.41,0.00015068,2]
[323217763,1713817933568,-500.0,0.00015068,2]
[323217764,1713817933577,-2293.72,0.00015068,2]
[323217765,1713817933587,-500.0,0.00015068,2]
[323217766,1713817933596,-1045.44,0.00015068,2]
[323217767,1713817933605,-1265.46,0.00015068,2]
[323217768,1713817933614,-500.0,0.00015068,2]
[323217769,1713817933623,-561.76,0.00015068,2]
[323217770,1713817933632,-648.54,0.00015068,2]
[323217771,1713817933642,-500.0,0.00015068,2]
[323217772,1713817933650,-500.0,0.00015068,2]
[323217773,1713817933659,-500.0,0.00015068,2]
[323217774,1713817933669,-1423.76,0.00015068,2]
[323217775,1713817933678,-500.0,0.00015068,2]
[323217776,1713817933687,-754.54,0.00015068,2]
[323217777,1713817933696,-500.0,0.00015068,2]
[323217778,1713817933706,-766.12,0.00015068,2]
[323217779,1713817933715,-1066.26,0.00015068,2]
[323217780,1713817933731,-1476.18,0.00015068,2]
[323217781,1713817933740,-730.36,0.00015068,2]
[323217782,1713817933749,-630.54,0.00015068,2]
[323217783,1713817933760,-1555.08,0.00015068,2]
[323217784,1713817933770,-1064.89,0.00015068,2]
[323217785,1713817933778,-1952.11,0.00015068,2]
[323217786,1713817933787,-500.0,0.00015068,2]
[323217787,1713817933797,-909.66,0.00015068,2]
[323217788,1713817933806,-500.0,0.00015068,2]
[323217789,1713817933816,-500.0,0.00015068,2]
[323217790,1713817933824,-801.08,0.00015068,2]
[323217791,1713817933834,-2542.4,0.00015068,2]
[323217792,1713817933842,-1323.06,0.00015068,2]
[323217793,1713817933852,-580.66,0.00015068,2]
[323217794,1713817933864,-1009.86,0.00015068,2]
[323217795,1713817933877,-685.24,0.00015068,2]
[323217796,1713817933887,-996.9,0.00015068,2]
[323217797,1713817933896,-751.49,0.00015068,2]
[323217798,1713817933906,-1254.19,0.00015068,2]
[323217799,1713817933920,-860.39,0.00015068,2]
[323217800,1713817933932,-4409.84,0.00015068,2]
[323217801,1713817933942,-513.13,0.00015068,2]
[323217802,1713817933954,-605.11,0.00015068,2]
[323217803,1713817933967,-500.45246629,0.00015068,2]
[323217804,1713817933978,-1437.23,0.00015068,2]
[323217805,1713817933988,-1024.83,0.00015068,2]
[323217806,1713817933997,-794.18,0.00015068,2]
[323217807,1713817934007,-1182.95,0.00015068,2]
[323217808,1713817934016,-1314.8,0.00015068,2]
[323217809,1713817934026,-500.0,0.00015068,2]
[323217810,1713817934036,-500.0,0.00015068,2]
[323217811,1713817934045,-1869.66,0.00015068,2]
[323217812,1713817934054,-983.81,0.00015068,2]
[323217813,1713817934063,-529.54840564,0.00015068,2]
[323217814,1713817934072,-500.0,0.00015068,2]
[323217815,1713817934082,-914.73,0.00015068,2]
[323217816,1713817934091,-320.37893617,0.00015068,2]
[323217817,1713817934100,-876.01,0.00015068,2]
[323217818,1713817934109,-500.0,0.00015068,2]
[323217819,1713817934119,-878.84,0.00015068,2]
[323217820,1713817934128,-502.5442522,0.00015068,2]
[323217821,1713817934137,-541.31,0.00015068,2]
[323217822,1713817934147,-894.0,0.00015068,2]
[323217823,1713817934156,-158.39384569,0.00015068,2]
[323217824,1713817934166,-1124.13,0.00015068,2]
[323217825,1713817934176,-2061.61,0.00015068,2]
[323217826,1713817934185,-1403.67,0.00015068,2]
[323217827,1713817934194,-1325.09,0.00015068,2]
[323217828,1713817934204,-500.0,0.00015068,2]
[323217829,1713817934213,-775.89,0.00015068,2]
[323217830,1713817934223,-1196.82,0.00015068,2]
[323217831,1713817934233,-1211.22,0.00015068,2]
[323217832,1713817934242,-500.0,0.00015068,2]
[323217833,1713817934251,-1451.51,0.00015068,2]
[323217834,1713817934265,-500.0,0.00015068,2]
[323217835,1713817934274,-1680.65,0.00015068,2]
[323217836,1713817934283,-500.0,0.00015068,2]
[323217837,1713817934292,-1636.05,0.00015068,2]
[323217838,1713817934302,-922.47,0.00015068,2]
[323217839,1713817934311,-500.0,0.00015068,2]
[323217840,1713817934321,-500.0,0.00015068,2]
[323217841,1713817934330,-725.28,0.00015068,2]
[323217842,1713817934339,-500.0,0.00015068,2]
[323217843,1713817934348,-500.0,0.00015068,2]
[323217844,1713817934357,-500.0,0.00015068,2]
[323217845,1713817934366,-816.4,0.00015068,2]
[323217846,1713817934376,-526.67,0.00015068,2]
[323217847,1713817934385,-491.24694429,0.00015068,2]
[323217848,1713817934394,-500.0,0.00015068,2]
[323217849,1713817934403,-500.0,0.00015068,2]
[323217850,1713817934412,-574.93370561,0.00015068,2]
[323217851,1713817934422,-500.0,0.00015068,2]
[323217852,1713817934431,-500.0,0.00015068,2]
[323217853,1713817934440,-754.42,0.00015068,2]
[323217854,1713817934449,-1131.8,0.00015068,2]
[323217855,1713817934459,-501.731099,0.00015068,2]
[323217856,1713817934468,-500.0,0.00015068,2]
[323217857,1713817934477,-500.0,0.00015068,2]
[323217858,1713817934487,-522.88124465,0.00015068,2]
[323217859,1713817934496,-1402.5,0.00015068,2]
[323217860,1713817934507,-532.25,0.00015068,2]
[323217861,1713817934515,-787.9,0.00015068,2]
[323217862,1713817934524,-500.0,0.00015068,2]
[323217863,1713817934533,-1069.11,0.00015068,2]
[323217864,1713817934542,-559.84,0.00015068,2]
[323217865,1713817934551,-1256.58,0.00015068,2]
[323217866,1713817934560,-410.58122968,0.00015068,2]
[323217867,1713817934570,-628.34,0.00015068,2]
[323217868,1713817934579,-500.0,0.00015068,2]
[323217869,1713817934588,-624.97,0.00015068,2]
[323217870,1713817934597,-428.32306399,0.00015068,2]
[323217871,1713817934606,-500.0,0.00015068,2]
[323217872,1713817934616,-1806.23,0.00015068,2]
[323217873,1713817934625,-1450.35,0.00015068,2]
[323217874,1713817934634,-1359.54,0.00015068,2]
[323217875,1713817934644,-500.0,0.00015068,2]
[323217876,1713817934654,-502.81,0.00015068,2]
[323217877,1713817934663,-1191.78,0.00015068,2]
[323217878,1713817934673,-888.12,0.00015068,2]
[323217879,1713817934682,-578.9,0.00015068,2]
[323217880,1713817934691,-1855.61,0.00015068,2]
[323217881,1713817934700,-500.0,0.00015068,2]
[323217882,1713817934709,-583.38,0.00015068,2]
[323217883,1713817934719,-500.0,0.00015068,2]
[323217884,1713817934730,-500.0,0.00015068,2]
[323217885,1713817934739,-1313.44,0.00015068,2]
[323217886,1713817934749,-1448.43,0.00015068,2]
[323217887,1713817934760,-500.0,0.00015068,2]
[323217888,1713817934769,-500.0,0.00015068,2]
[323217889,1713817934778,-500.0,0.00015068,2]
[323217890,1713817934788,-500.0,0.00015068,2]
[323217891,1713817934797,-1028.72,0.00015068,2]
[323217892,1713817934807,-595.0,0.00015068,2]
[323217893,1713817934816,-547.89,0.00015068,2]
[323217894,1713817934825,-500.0,0.00015068,2]
[323217895,1713817934834,-1641.26,0.00015068,2]
[323217896,1713817934844,-1768.32,0.00015068,2]
[323217897,1713817934853,-500.0,0.00015068,2]
[323217898,1713817934865,-3339.2,0.00015068,2]
[323217899,1713817934875,-668.1,0.00015068,2]
[323217900,1713817934885,-863.77,0.00015068,2]
[323217901,1713817934894,-500.0,0.00015068,2]
[323217902,1713817934903,-500.0,0.00015068,2]
[323217903,1713817934915,-1124.07,0.00015068,2]
[323217904,1713817934926,-557.13,0.00015068,2]
[323217905,1713817934935,-500.0,0.00015068,2]
[323217906,1713817934945,-562.12,0.00015068,2]
[323217907,1713817934956,-500.0,0.00015068,2]
[323217908,1713817934965,-840.96,0.00015068,2]
[323217909,1713817934974,-816.6,0.00015068,2]
[323217910,1713817934983,-500.0,0.00015068,2]
[323217911,1713817934993,-500.0,0.00015068,2]
[323217912,1713817935001,-811.15,0.00015068,2]
[323217913,1713817935013,-1876.65,0.00015068,2]
[323217914,1713817935022,-1275.39,0.00015068,2]
[323217915,1713817935032,-500.0,0.00015068,2]
[323217916,1713817935041,-1190.54,0.00015068,2]
[323217917,1713817935050,-500.0,0.00015068,2]
[323217918,1713817935059,-1082.13,0.00015068,2]
[323217919,1713817935068,-1247.63,0.00015068,2]
[323217920,1713817935078,-2584.59,0.00015068,2]
[323217921,1713817935087,-754.66,0.00015068,2]
[323217922,1713817935096,-1169.33,0.00015068,2]
[323217923,1713817935105,-3329.52,0.00015068,2]
[323217924,1713817935115,-621.96,0.00015068,2]
[323217925,1713817935125,-500.0,0.00015068,2]
[323217926,1713817935134,-500.0,0.00015068,2]
[323217927,1713817935143,-500.0,0.00015068,2]
[323217928,1713817935153,-845.41,0.00015068,2]
[323217929,1713817935162,-755.77,0.00015068,2]
[323217930,1713817935172,-500.0,0.00015068,2]
[323217931,1713817935181,-973.92,0.00015068,2]
[323217932,1713817935190,-1019.33,0.00015068,2]
[323217933,1713817935200,-549.92,0.00015068,2]
[323217934,1713817935209,-500.0,0.00015068,2]
[323217935,1713817935218,-500.0,0.00015068,2]
[323217936,1713817935229,-1233.41,0.00015068,2]
[323217937,1713817935238,-503.95076021,0.00015068,2]
[323217938,1713817935247,-524.29,0.00015068,2]
[323217939,1713817935258,-730.26,0.00015068,2]
[323217940,1713817935268,-1250.58,0.00015068,2]
[323217941,1713817935277,-500.0,0.00015068,2]
[323217942,1713817935286,-590.06,0.00015068,2]
[323217943,1713817935295,-500.0,0.00015068,2]
[323217944,1713817935304,-1827.41,0.00015068,2]
[323217945,1713817935315,-500.0,0.00015068,2]
[323217946,1713817935324,-501.84637829,0.00015068,2]
[323217947,1713817935335,-744.02,0.00015068,2]
[323217948,1713817935345,-1751.5,0.00015068,2]
[323217949,1713817935356,-500.0,0.00015068,2]
[323217950,1713817935366,-500.0,0.00015068,2]
[323217951,1713817935376,-1503.69,0.00015068,2]
[323217952,1713817935385,-500.0,0.00015068,2]
[323217953,1713817935395,-1054.98,0.00015068,2]
[323217954,1713817935405,-500.0,0.00015068,2]
[323217955,1713817935415,-527.77,0.00015068,2]
[323217956,1713817935425,-500.0,0.00015068,2]
[323217957,1713817935436,-1757.63,0.00015068,2]
[323217958,1713817935445,-1390.28,0.00015068,2]
[323217959,1713817935455,-543.73,0.00015068,2]
[323217960,1713817935466,-800.72,0.00015068,2]
[323217961,1713817935476,-560.39,0.00015068,2]
[323217962,1713817935485,-500.97329787,0.00015068,2]
[323217963,1713817935494,-710.37,0.00015068,2]
[323217964,1713817935504,-8671.29,0.00015068,2]
[323217965,1713817935519,-2737.44,0.00015068,2]
[323217966,1713817935528,-500.0,0.00015068,2]
[323217967,1713817935537,-1220.79,0.00015068,2]
[323217968,1713817935546,-991.82,0.00015068,2]
[323217969,1713817935559,-500.0,0.00015068,2]
[323217970,1713817935568,-4012.68,0.00015068,2]
[323217971,1713817935578,-3731.89,0.00015068,2]
[323217972,1713817935587,-1170.18,0.00015068,2]
[323217973,1713817935596,-500.0,0.00015068,2]
[323217974,1713817935606,-1190.98,0.00015068,2]
[323217975,1713817935615,-547.34345617,0.00015068,2]
[323217976,1713817935624,-1044.89,0.00015068,2]
[323217977,1713817935633,-500.0,0.00015068,2]
[323217978,1713817935642,-773.35,0.00015068,2]
[323217979,1713817935651,-12096.17,0.00015068,2]
[323217980,1713817935661,-1727.84,0.00015068,2]
[323217981,1713817935671,-508.4,0.00015068,2]
[323217982,1713817935680,-938.55,0.00015068,2]
[323217983,1713817935690,-503.26391966,0.00015068,2]
[323217984,1713817935701,-1147.24,0.00015068,2]
[323217985,1713817935710,-20433.91,0.00015068,2]
[323217986,1713817935719,-500.0,0.00015068,2]
[323217987,1713817935728,-1529.34,0.00015068,2]
[323217988,1713817935738,-4437.11,0.00015068,2]
[323217989,1713817935747,-3682.04,0.00015068,2]
[323217990,1713817935757,-4397.02,0.00015068,2]
[323217991,1713817935766,-500.0,0.00015068,2]
[323217992,1713817935775,-1045.51,0.00015068,2]
[323217993,1713817935785,-500.0,0.00015068,2]
[323217994,1713817935794,-502.61,0.00015068,2]
[323217995,1713817935803,-500.0,0.00015068,2]
[323217996,1713817935813,-500.0,0.00015068,2]
[323217997,1713817935823,-2939.82,0.00015068,2]
[323217998,1713817935832,-4066.35,0.00015068,2]
[323217999,1713817935842,-500.0,0.00015068,2]
[323218000,1713817935851,-9104.68,0.00015068,2]
[323218001,1713817935860,-2694.54,0.00015068,2]
[323218002,1713817935871,-606.84,0.00015068,2]
[323218003,1713817935881,-675.73,0.00015068,2]
[323218004,1713817935890,-1227.83,0.00015068,2]
[323218005,1713817935900,-13312.5,0.00015068,2]
[323218006,1713817935909,-4924.18,0.00015068,2]
[323218007,1713817935919,-843.14,0.00015068,2]
[323218008,1713817935929,-500.0,0.00015068,2]
[323218009,1713817935938,-628.03158433,0.00015068,2]
[323218010,1713817935950,-752.32,0.00015068,2]
[323218011,1713817935961,-500.0,0.00015068,2]
[323218012,1713817935970,-2295.67,0.00015068,2]
[323218013,1713817935980,-1329.4,0.00015068,2]
[323218014,1713817935989,-500.0,0.00015068,2]
[323218015,1713817935998,-19623.04,0.00015068,2]
[323218016,1713817936008,-500.0,0.00015068,2]
[323218017,1713817936017,-500.0,0.00015068,2]
[323218018,1713817936027,-500.0,0.00015068,2]
[323218019,1713817936036,-696.75,0.00015068,2]
[323218020,1713817936046,-4571.21,0.00015068,2]
[323218021,1713817936055,-1065.73,0.00015068,2]
[323218022,1713817936064,-8822.49,0.00015068,2]
[323218023,1713817936074,-4272.21,0.00015068,2]
[323218024,1713817936084,-2754.05,0.00015068,2]
[323218025,1713817936093,-2238.45,0.00015068,2]
[323218026,1713817936102,-500.0,0.00015068,2]
[323218027,1713817936111,-500.0,0.00015068,2]
[323218028,1713817936120,-1968.05,0.00015068,2]
[323218029,1713817936130,-17508.63,0.00015068,2]
[323218030,1713817936139,-5023.5,0.00015068,2]
[323218031,1713817936149,-975.21,0.00015068,2]
[323218032,1713817936159,-5798.87,0.00015068,2]
[323218033,1713817936169,-1827.86,0.00015068,2]
[323218034,1713817936179,-5213.97,0.00015068,2]
[323218035,1713817936188,-4518.5,0.00015068,2]
[323218036,1713817936198,-3464.58,0.00015068,2]
[323218037,1713817936207,-1356.45,0.00015068,2]
[323218038,1713817936216,-533.11,0.00015068,2]
[323218039,1713817936225,-1424.13,0.00015068,2]
[323218040,1713817936235,-7647.7,0.00015068,2]
[323218041,1713817936244,-980.74,0.00015068,2]
[323218042,1713817936253,-500.0,0.00015068,2]
[323218043,1713817936263,-866.39,0.00015068,2]
[323218044,1713817936272,-6333.04,0.00015068,2]
[323218045,1713817936281,-1130.77,0.00015068,2]
[323218046,1713817936291,-1043.08,0.00015068,2]
[323218047,1713817936300,-500.0,0.00015068,2]
[323218048,1713817936309,-4957.21,0.00015068,2]
[323218049,1713817936318,-500.0,0.00015068,2]
[323218050,1713817936327,-500.0,0.00015068,2]
[323218051,1713817936337,-972.86,0.00015068,2]
[323218052,1713817936346,-1902.61,0.00015068,2]
[323218053,1713817936355,-17087.41,0.00015068,2]
[323218054,1713817936364,-2426.59,0.00015068,2]
[323218055,1713817936374,-4288.29,0.00015068,2]
[323218056,1713817936383,-1173.49,0.00015068,2]
[323218057,1713817936392,-8918.06,0.00015068,2]
[323218058,1713817936401,-8646.75,0.00015068,2]
[323218059,1713817936411,-500.0,0.00015068,2]
[323218060,1713817936420,-5848.77,0.00015068,2]
[323218061,1713817936429,-663.73,0.00015068,2]
[323218062,1713817936439,-500.0,0.00015068,2]
[323218063,1713817936448,-14690.22,0.00015068,2]
[323218064,1713817936457,-1312.73,0.00015068,2]
[323218065,1713817936466,-506.74,0.00015068,2]
[323218066,1713817936475,-2234.61,0.00015068,2]
[323218067,1713817936485,-500.0,0.00015068,2]
[323218068,1713817936494,-648.66,0.00015068,2]
[323218069,1713817936503,-500.0,0.00015068,2]
[323218070,1713817936513,-10938.94,0.00015068,2]
[323218071,1713817936522,-500.0,0.00015068,2]
[323218072,1713817936532,-1962.25,0.00015068,2]
[323218073,1713817936667,-198.43830327,0.00015068,2]
[323218074,1713817936677,-2886.61,0.00015068,2]
[323218075,1713817936687,-579.41,0.00015068,2]
[323218076,1713817936697,-1997.87,0.00015068,2]
[323218077,1713817936707,-500.0,0.00015068,2]
[323218078,1713817936717,-53885.3,0.00015068,2]
[323218079,1713817936726,-1244.34,0.00015068,2]
[323218080,1713817936736,-4051.64,0.00015068,2]
[323218081,1713817936746,-1590.37,0.00015068,2]
[323218082,1713817936755,-7669.72,0.00015068,2]
[323218083,1713817936765,-595.46356451,0.00015068,2]
[323218084,1713817936775,-501.39134119,0.00015068,2]
[323218085,1713817936784,-2236.17,0.00015068,2]
[323218086,1713817936794,-2521.35,0.00015068,2]
[323218087,1713817936803,-500.0,0.00015068,2]
[323218088,1713817936812,-500.0,0.00015068,2]
[323218089,1713817936822,-1645.21,0.00015068,2]
[323218090,1713817936832,-1544.16,0.00015068,2]
[323218091,1713817936842,-1510.42,0.00015068,2]
[323218092,1713817936853,-1343.13,0.00015068,2]
[323218093,1713817936864,-500.0,0.00015068,2]
[323218094,1713817936878,-1028.46,0.00015068,2]
[323218095,1713817936888,-5067.75,0.00015068,2]
[323218096,1713817936897,-803.65,0.00015068,2]
[323218097,1713817936907,-754.93,0.00015068,2]
[323218098,1713817936918,-26471.53,0.00015068,2]
[323218099,1713817936930,-500.0,0.00015068,2]
[323218100,1713817936942,-1051.95,0.00015068,2]
[323218101,1713817936953,-1582.45,0.00015068,2]
[323218102,1713817936963,-11812.41,0.00015068,2]
[323218103,1713817936973,-1393.84,0.00015068,2]
[323218104,1713817936983,-500.0,0.00015068,2]
[323218105,1713817936993,-1564.41,0.00015068,2]
[323218106,1713817937003,-807.31,0.00015068,2]
[323218107,1713817937013,-3864.45,0.00015068,2]
[323218108,1713817937024,-3718.52,0.00015068,2]
[323218109,1713817937034,-500.0,0.00015068,2]
[323218110,1713817937044,-500.0,0.00015068,2]
[323218111,1713817937054,-5811.41,0.00015068,2]
[323218112,1713817937064,-500.0,0.00015068,2]
[323218113,1713817937075,-6037.29,0.00015068,2]
[323218114,1713817937085,-1502.85,0.00015068,2]
[323218115,1713817937094,-2889.09,0.00015068,2]
[323218116,1713817937104,-6389.88,0.00015068,2]
[323218117,1713817937114,-669.89,0.00015068,2]
[323218118,1713817937124,-500.0,0.00015068,2]
[323218119,1713817937134,-156.60012987,0.00015068,2]
[323218120,1713817937145,-1991.04,0.00015068,2]
[323218121,1713817937155,-500.0,0.00015068,2]
[323218122,1713817937165,-5057.75,0.00015068,2]
[323218123,1713817937175,-500.0,0.00015068,2]
[323218124,1713817937185,-2149.82,0.00015068,2]
[323218125,1713817937197,-2095.61,0.00015068,2]
[323218126,1713817937206,-2535.93,0.00015068,2]
[323218127,1713817937216,-610.24,0.00015068,2]
[323218128,1713817937226,-500.0,0.00015068,2]
[323218129,1713817937235,-500.0,0.00015068,2]
[323218130,1713817937245,-558.4,0.00015068,2]
[323218131,1713817937255,-9434.59,0.00015068,2]
[323218132,1713817937266,-1851.7,0.00015068,2]
[323218133,1713817937275,-6735.46,0.00015068,2]
[323218134,1713817937285,-1148.52,0.00015068,2]
[323218135,1713817937295,-500.0,0.00015068,2]
[323218136,1713817937304,-2751.02,0.00015068,2]
[323218137,1713817937314,-500.0,0.00015068,2]
[323218138,1713817937324,-2872.2,0.00015068,2]
[323218139,1713817937334,-494.66200978,0.00015068,2]
[323218140,1713817937343,-560.07,0.00015068,2]
[323218141,1713817937353,-4572.48,0.00015068,2]
[323218142,1713817937362,-2848.87,0.00015068,2]
[323218143,1713817937371,-500.0,0.00015068,2]
[323218144,1713817937381,-12108.08,0.00015068,2]
[323218145,1713817937391,-4162.92,0.00015068,2]
[323218146,1713817937401,-2605.69,0.00015068,2]
[323218147,1713817937411,-505.78,0.00015068,2]
[323218148,1713817937420,-500.0,0.00015068,2]
[323218149,1713817937429,-500.0,0.00015068,2]
[323218150,1713817937439,-1139.18,0.00015068,2]
[323218151,1713817937449,-2445.43,0.00015068,2]
[323218152,1713817937459,-500.0,0.00015068,2]
[323218153,1713817937468,-4970.85,0.00015068,2]
[323218154,1713817937478,-500.0,0.00015068,2]
[323218155,1713817937487,-5993.52,0.00015068,2]
[323218156,1713817937498,-4558.05,0.00015068,2]
[323218157,1713817937507,-2320.73,0.00015068,2]
[323218158,1713817937517,-38504.87,0.00015068,2]
[323218159,1713817937526,-2509.82,0.00015068,2]
[323218160,1713817937536,-500.0,0.00015068,2]
[323218161,1713817937546,-4258.45,0.00015068,2]
[323218162,1713817937555,-782.97,0.00015068,2]
[323218163,1713817937565,-500.0,0.00015068,2]
[323218164,1713817937575,-1377.87,0.00015068,2]
[323218165,1713817937584,-500.0,0.00015068,2]
[323218166,1713817937594,-500.0,0.00015068,2]
[323218167,1713817937604,-4269.95,0.00015068,2]
[323218168,1713817937614,-844.44,0.00015068,2]
[323218169,1713817937623,-500.0,0.00015068,2]
[323218170,1713817937633,-1194.19,0.00015068,2]
[323218171,1713817937642,-1360.06,0.00015068,2]
[323218172,1713817937652,-535.38,0.00015068,2]
[323218173,1713817937662,-1464.57,0.00015068,2]
[323218174,1713817937673,-476.28504698,0.00015068,2]
[323218175,1713817937683,-519.11,0.00015068,2]
[323218176,1713817937694,-2389.58,0.00015068,2]
[323218177,1713817937703,-4846.13,0.00015068,2]
[323218178,1713817937713,-4078.34,0.00015068,2]
[323218179,1713817937723,-2486.12,0.00015068,2]
[323218180,1713817937732,-500.0,0.00015068,2]
[323218181,1713817937741,-1059.02,0.00015068,2]
[323218182,1713817937751,-500.0,0.00015068,2]
[323218183,1713817937760,-5188.48,0.00015068,2]
[323218184,1713817937769,-9091.85,0.00015068,2]
[323218185,1713817937779,-500.0,0.00015068,2]
[323218186,1713817937788,-1379.16,0.00015068,2]